fUSD/lending_fUSD_20251014
["ID","MTS","AMOUNT","RATE_DAILY","PERIOD"]
[391260384,1760448631693,-102.36105714,0.00014999,2]
[391260385,1760448631705,-47.63894286,0.00014999,2]
[391260386,1760448631714,-682.64160043,0.00014999,2]
[391260387,1760448631724,-1330.6261852,0.00015,2]
[391260388,1760448631735,-2385.6564233,0.00015,2]
[391260389,1760448631762,-1363.48145674,0.00015,2]
[391260390,1760448631777,-1435.76059208,0.00015,2]
[391260391,1760448631789,-3086.2474592,0.00015,2]
[391260392,1760448631800,-4464.93178166,0.00015,2]
[391260393,1760448631819,-1819.04459941,0.00015,2]
[391260394,1760448631832,-463.27860312,0.00015,2]
[391260397,1760448631843,-373.2980954,0.00015,2]
[391260398,1760448631854,-4191.68029792,0.00015,2]
[391260399,1760448631865,-368.48262326,0.00015,2]
[391260402,1760448631969,-5598.5,0.00015,2]
[391260404,1760448631980,-13271.35087595,0.00015,2]
[391260406,1760448631992,-24448.64830271,0.00015,2]
[391260419,1760448634012,1015.0,0.00027397,120]
[391260490,1760448638344,-1662.80305889,0.00015,2]
[391260495,1760448638381,-534.11405638,0.00015,2]
[391260497,1760448638397,-1217.4,0.00015,2]
[391260625,1760448639596,-2956.3302892,0.00015,2]
[391260649,1760448639825,-445.07838,0.00015,2]
[391260917,1760448642667,-388.30791997,0.00015,2]
[391260919,1760448642780,-1267.63643512,0.00015,2]
[391261053,1760448645542,-984.71214,0.00015,2]
[391261054,1760448645662,-3518.67539997,0.00015,2]
[391261055,1760448645886,-2411.10000764,0.00015,2]
[391261056,1760448645948,-1907.9148363,0.00015,2]
[391261066,1760448652785,500.0,0.00027397,120]
[391261067,1760448656047,728.63,0.00027397,120]
[391261070,1760448793617,500.0,0.00027397,120]
[391261071,1760448799794,2000.0,0.00027397,120]
[391261072,1760448820706,500.0,0.00027397,120]
[391261081,1760448908757,2199.29489876,7.945e-05,2]
[391261082,1760448908789,2055.26055824,7.945e-05,2]
[391261083,1760448917996,165.0,0.00024458,120]
[391261084,1760448918886,165.0,0.00025681,120]
[391261085,1760448920132,165.0,0.00026965,120]
[391261086,1760448950863,2000.0,0.00027397,120]
[391261088,1760449228899,166.0,0.00024475,120]
[391261089,1760449230287,166.0,0.00025698,120]
[391261090,1760449231737,166.0,0.00026983,120]
[391261091,1760449242585,1600.0,0.00025197,120]
[391261095,1760449375039,250.0,0.00014626,7]
[391261097,1760449398934,500.0,0.00027397,120]
[391261098,1760449405781,2000.0,0.00027397,120]
[391261099,1760449427981,500.0,0.00027397,120]
[391261100,1760449428242,307.7,0.0002739,120]
[391261101,1760449436287,500.0,0.00027397,120]
[391261102,1760449438823,529.74,0.00027397,120]
[391261121,1760449513158,175.0,0.00024406,120]
[391261123,1760449514641,175.0,0.00025626,120]
[391261124,1760449516101,175.0,0.00026908,120]
[391261125,1760449594487,500.0,0.00027397,120]
[391261126,1760449630678,165.36632064,0.00027397,120]
[391261127,1760449686816,200.0,0.00027397,120]
[391261132,1760449803137,1619.53907781,0.0001373,5]
[391261146,1760449831733,-234.74213454,0.00013388,2]
[391261147,1760449831745,-300.0,0.00013487,2]
[391261148,1760449831756,-441.29186546,0.00013487,2]
[391261149,1760449831767,-758.70813454,0.00013487,2]
[391261150,1760449831778,-38.30259977,0.00013488,2]
[391261151,1760449831803,-212.2335958,0.00013488,2]
[391261152,1760449831814,-150.0,0.00013488,2]
[391261153,1760449831824,-150.0,0.00013488,2]
[391261154,1760449831834,-150.0,0.00013488,2]
[391261155,1760449831844,-150.0,0.00013488,2]
[391261156,1760449831853,-150.00000001,0.00013488,2]
[391261157,1760449831862,-150.0,0.00013488,2]
[391261158,1760449831872,-150.0,0.00013488,2]
[391261159,1760449831882,-152.01275841,0.00013488,2]
[391261160,1760449831892,-166.66,0.00013728,2]
[391261161,1760449831902,-4380.46092219,0.0001373,5]
[391261162,1760449831911,-300.0,0.00013861,2]
[391261163,1760449831921,-182.35184329,0.00013862,2]
[391261164,1760449831930,-2000.06828419,0.00013862,2]
[391261165,1760449831940,-166.66,0.00014017,2]
[391261166,1760449831950,-273.69,0.00014112,2]
[391261167,1760449831963,-175.26407817,0.00014137,2]
[391261168,1760449831972,-150.0,0.00014237,2]
[391261169,1760449831982,-166.66,0.00014306,2]
[391261170,1760449831992,-8005.66,0.0001445,2]
[391261171,1760449832002,-671.0,0.00014525,2]
[391261172,1760449832011,-686.0,0.00014554,2]
[391261173,1760449832022,-294.0,0.00014583,2]
[391261174,1760449832032,-166.66,0.00014595,2]
[391261175,1760449832045,-1930.0,0.00014612,2]
[391261176,1760449832056,-635.0,0.00014641,2]
[391261177,1760449832066,-1310.0,0.0001467,2]
[391261178,1760449832077,-700.0,0.000147,3]
[391261179,1760449832088,-168.24875894,0.00014727,2]
[391261180,1760449832099,-2000.0,0.00014727,2]
[391261181,1760449832108,-365.75889896,0.00014727,2]
[391261182,1760449832119,-2000.0,0.00014727,2]
[391261183,1760449832128,-2500.0,0.00014727,2]
[391261184,1760449832138,-250.0,0.00014727,2]
[391261185,1760449832151,-228.0,0.00014783,2]
[391261186,1760449832161,-1680.0,0.00014835,2]
[391261187,1760449832171,-2000.0,0.00014836,2]
[391261188,1760449832180,-2500.0,0.00014836,2]
[391261189,1760449832190,-300.0,0.00014836,2]
[391261190,1760449832200,-2000.0,0.00014836,2]
[391261191,1760449832210,-166.66,0.00014884,2]
[391261192,1760449832220,-175.26407817,0.00014899,2]
[391261193,1760449832230,-150.0,0.00014899,2]
[391261194,1760449832240,-177.70319766,0.000149,2]
[391261195,1760449832250,-4744.3086327,0.000149,2]
[391261196,1760449832260,-151.16889995,0.000149,2]
[391261197,1760449832270,-431.6932952,0.000149,2]
[391261198,1760449832279,-256.88255014,0.000149,2]
[391261199,1760449832289,-4130.71798155,0.000149,2]
[391261200,1760449832301,-331.6482358,0.000149,2]
[391261201,1760449832311,-151.0,0.00014965,2]
[391261202,1760449832321,-151.82953881,0.00014965,2]
[391261203,1760449832330,-150.99,0.00014965,2]
[391261204,1760449832340,-20001.06,0.00014965,2]
[391261205,1760449832349,-999.99,0.00014965,2]
[391261206,1760449832359,-299.99,0.00014965,2]
[391261207,1760449832368,-9999.99,0.00014965,2]
[391261208,1760449832377,-9999.99,0.00014965,2]
[391261209,1760449832387,-500.0,0.00014973,2]
[391261210,1760449832396,-500.0,0.00014973,2]
[391261211,1760449832405,-500.0,0.00014973,2]
[391261212,1760449832415,-150.99,0.00014973,2]
[391261213,1760449832425,-2493.7,0.00014973,2]
[391261214,1760449832434,-343.18,0.00014973,2]
[391261215,1760449832444,-9999.99,0.00014973,2]
[391261216,1760449832453,-9999.99,0.00014973,2]
[391261217,1760449832463,-500.0,0.00014973,2]
[391261218,1760449832472,-3457.4278815,0.00014986,2]
[391261219,1760449832481,-1365.8384498,0.00014986,2]
[391261220,1760449832491,-7469.7654772,0.00014986,2]
[391261221,1760449832501,-41842.4087202,0.00014986,2]
[391261222,1760449832510,-150.0,0.00014986,2]
[391261223,1760449832520,-150.0,0.00014986,2]
[391261224,1760449832531,-165.55947544,0.0001499,2]
[391261225,1760449832549,-1580.518,0.00014991,2]
[391261226,1760449832562,-200.0,0.00014991,2]
[391261227,1760449832573,-151.0,0.00014991,2]
[391261228,1760449832584,-151.0,0.00014991,2]
[391261229,1760449832595,-151.0,0.00014991,2]
[391261230,1760449832604,-151.0,0.00014991,2]
[391261231,1760449832614,-151.0,0.00014991,2]
[391261232,1760449832624,-151.0,0.00014991,2]
[391261233,1760449832633,-151.0,0.00014991,2]
[391261234,1760449832643,-151.0,0.00014991,2]
[391261235,1760449832653,-151.0,0.00014991,2]
[391261236,1760449832663,-151.0,0.00014991,2]
[391261237,1760449832673,-151.0,0.00014991,2]
[391261238,1760449832682,-151.0,0.00014991,2]
[391261239,1760449832693,-151.0,0.00014991,2]
[391261240,1760449832702,-151.0,0.00014991,2]
[391261241,1760449832712,-151.0,0.00014991,2]
[391261242,1760449832722,-151.0,0.00014991,2]
[391261243,1760449832735,-151.0,0.00014991,2]
[391261244,1760449832745,-151.0,0.00014991,2]
[391261245,1760449832755,-151.0,0.00014991,2]
[391261246,1760449832766,-151.0,0.00014991,2]
[391261247,1760449832776,-151.0,0.00014991,2]
[391261248,1760449832786,-151.0,0.00014991,2]
[391261249,1760449832799,-151.0,0.00014991,2]
[391261250,1760449832811,-151.0,0.00014991,2]
[391261251,1760449832821,-151.0,0.00014991,2]
[391261252,1760449832830,-151.0,0.00014991,2]
[391261253,1760449832841,-151.0,0.00014991,2]
[391261254,1760449832850,-200.0,0.00014991,2]
[391261255,1760449832860,-151.0,0.00014991,2]
[391261256,1760449832870,-151.0,0.00014991,2]
[391261257,1760449832880,-3000.0,0.00014999,2]
[391261258,1760449832890,-1000.0,0.00014999,2]
[391261259,1760449832899,-1000.0,0.00014999,2]
[391261260,1760449832909,-1000.0,0.00014999,2]
[391261261,1760449832918,-1000.0,0.00014999,2]
[391261262,1760449832928,-1000.0,0.00014999,2]
[391261263,1760449832938,-1000.0,0.00014999,2]
[391261264,1760449832948,-1000.0,0.00014999,2]
[391261265,1760449832958,-1000.0,0.00014999,2]
[391261266,1760449832968,-1000.0,0.00014999,2]
[391261267,1760449832978,-1000.0,0.00014999,2]
[391261268,1760449832988,-158.22344305,0.00014999,2]
[391261269,1760449832998,-1000.0,0.00014999,2]
[391261270,1760449833008,-500.0,0.00014999,2]
[391261271,1760449833017,-500.0,0.00014999,2]
[391261272,1760449833027,-500.0,0.00014999,2]
[391261273,1760449833036,-500.0,0.00014999,2]
[391261274,1760449833049,-500.0,0.00014999,2]
[391261275,1760449833059,-407.86437733,0.00014999,2]
[391261276,1760449833070,-595.62784736,0.00014999,2]
[391261277,1760449833079,-397.18190333,0.00014999,2]
[391261278,1760449833089,-155.0,0.00014999,2]
[391261279,1760449833102,-155926.94697298,0.00015,2]
[391261280,1760449833117,-356830.521,0.00015,2]
[391261281,1760449833129,-30844.0723095,0.00015,2]
[391261282,1760449833142,-38112.86386334,0.00015,2]
[391261283,1760449833162,-49576.33496039,0.00015,2]
[391261284,1760449833215,-335.26580545,0.00015,2]
[391261285,1760449833227,-5188.1237225,0.00015,2]
[391261286,1760449833239,-370.0,0.00015,2]
[391261287,1760449833251,-1471.13617553,0.00015,2]
[391261288,1760449835411,-31256.26816593,0.00015,2]
[391261538,1760449837629,-424.88308538,0.00015,2]
[391261550,1760449837739,-75163.78773422,0.00015,2]
[391261553,1760449837751,-55184.112,0.00015,2]
[391261556,1760449837778,-24000.00017958,0.00015,2]
[391261561,1760449837817,-11025.0,0.00015,2]
[391261757,1760449839807,-983.65767501,0.00015,2]
[391261761,1760449839830,-1102.0,0.00015,2]
[391261763,1760449839842,-18460.0,0.00015,2]
[391261765,1760449839853,-1550.0,0.00015,2]
[391261767,1760449839865,-30277.5,0.00015,2]
[391261780,1760449839992,-3069.26999991,0.00015,2]
[391261782,1760449840002,-2306.7961059,0.00015,2]
[391261789,1760449840059,-637.34752242,0.00015,2]
[391262160,1760449843746,-5087.67275333,0.00015,2]
[391262230,1760449845737,-277.0,0.00014437,2]
[391262231,1760449845747,-100.73944859,0.00015,2]
[391262232,1760449845799,-1104.61230724,0.00015,2]
[391262233,1760449845816,-22382.0,0.00015,2]
[391262234,1760449845827,-19117.0,0.00015,2]
[391262235,1760449845975,-302.0,0.00015,2]
[391262236,1760449845987,-662.53723803,0.00015,2]
[391262237,1760449846036,-642.24403196,0.00015,2]
[391262238,1760449846097,-5206.87291149,0.00015,2]
[391262251,1760449866242,1511.62583681,0.0002739,120]
[391262253,1760449994609,500.0,0.00027397,120]
[391262254,1760449999903,2000.0,0.00027397,120]
[391262255,1760450005507,900.0,0.000265,120]
[391262256,1760450015986,500.0,0.00027397,120]
[391262257,1760450023178,500.0,0.00027397,120]
[391262258,1760450077867,591.52547361,0.00017,10]
[391262270,1760450304302,1000.0,0.0002739,120]
[391262271,1760450435085,3048.0,0.00027397,120]
[391262287,1760450552018,500.0,0.00027397,120]
[391262294,1760450594634,500.0,0.00027397,120]
[391262295,1760450599727,2000.0,0.00027397,120]
[391262296,1760450600976,377.71833648,0.00027397,120]
[391262300,1760450613829,500.0,0.00027397,120]
[391262301,1760450620302,500.0,0.00027397,120]
[391262325,1760450808539,1680.0,0.00027397,120]
[391262336,1760450984392,170.93,0.00010931,2]
[391262337,1760451006362,-226.68396734,0.00013285,2]
[391262338,1760451010186,-315.89737769,0.00013285,2]
[391262339,1760451012664,-244.70049788,0.00013285,2]
[391262345,1760451031889,-69.20161209,0.00013285,2]
[391262346,1760451031899,-1940.84747591,0.00013386,2]
[391262347,1760451031951,-59.15252409,0.00013386,2]
[391262348,1760451031961,-150.0,0.00013488,2]
[391262349,1760451031971,-230.04729185,0.000136,2]
[391262350,1760451031980,-2000.0,0.00013607,2]
[391262351,1760451031990,-2000.0,0.00013607,2]
[391262352,1760451032000,-246.09928107,0.00013795,2]
[391262353,1760451032010,-300.0,0.00013895,2]
[391262354,1760451032019,-1200.0,0.00013895,2]
[391262355,1760451032029,-300.0,0.00013895,2]
[391262356,1760451032042,-245.76,0.00013963,2]
[391262357,1760451032052,-150.0,0.00013983,2]
[391262358,1760451032061,-1535.51,0.00013984,2]
[391262359,1760451032076,-666.0,0.00013984,3]
[391262360,1760451032085,-9999.99,0.00013984,2]
[391262362,1760451032095,-9999.99,0.00013984,2]
[391262364,1760451032104,-150.99,0.00013984,2]
[391262365,1760451032114,-8089.4062461,0.00014,2]
[391262366,1760451032123,-286.37,0.0001429,2]
[391262367,1760451032132,-413.0,0.00014321,2]
[391262368,1760451032142,-355.0,0.00014349,2]
[391262370,1760451032152,-338.0,0.00014378,2]
[391262372,1760451032161,-272.0,0.00014406,2]
[391262374,1760451032171,-1484.0,0.0001443,2]
[391262376,1760451032181,-176.0,0.00014435,2]
[391262378,1760451032191,-1831.98,0.0001445,2]
[391262380,1760451032200,-684.0,0.00014459,2]
[391262382,1760451032210,-455.0,0.00014464,2]
[391262384,1760451032219,-1094.0,0.00014487,2]
[391262386,1760451032228,-418.0,0.00014492,2]
[391262388,1760451032238,-966.0,0.00014516,2]
[391262390,1760451032247,-180.0,0.00014521,2]
[391262392,1760451032257,-1400.0,0.00014545,2]
[391262394,1760451032266,-1985.0,0.00014574,2]
[391262396,1760451032275,-211.86,0.000146,2]
[391262398,1760451032285,-212.0,0.00014603,2]
[391262400,1760451032298,-2000.0,0.00014614,2]
[391262404,1760451032308,-2000.0,0.00014688,2]
[391262408,1760451032317,-245.76,0.00014739,2]
[391262411,1760451032327,-413.0,0.00014787,2]
[391262413,1760451032336,-295.0,0.00014816,2]
[391262415,1760451032345,-266.0,0.00014846,2]
[391262417,1760451032355,-169.0,0.00014875,2]
[391262419,1760451032364,-203.14222053,0.00014891,2]
[391262421,1760451032374,-151.0,0.00014891,2]
[391262423,1760451032384,-226.02260155,0.00014891,2]
[391262425,1760451032393,-2185.007,0.00014899,2]
[391262427,1760451032402,-160.58944611,0.000149,2]
[391262429,1760451032412,-220.82503573,0.000149,2]
[391262431,1760451032421,-500.0,0.000149,2]
[391262433,1760451032430,-290.19220629,0.000149,2]
[391262435,1760451032439,-9719.0045221,0.000149,2]
[391262437,1760451032449,-449.0,0.00014905,2]
[391262439,1760451032459,-259.0,0.00014934,2]
[391262441,1760451032468,-500.0,0.00014973,2]
[391262443,1760451032477,-500.0,0.00014973,2]
[391262445,1760451032486,-354.47954189,0.00014973,2]
[391262447,1760451032494,-500.0,0.00014973,2]
[391262449,1760451032504,-560.92895725,0.00014973,2]
[391262451,1760451032513,-500.0,0.00014973,2]
[391262453,1760451032522,-500.0,0.00014973,2]
[391262455,1760451032532,-426.01148684,0.00014973,2]
[391262457,1760451032546,-502.74837759,0.00014973,2]
[391262459,1760451032555,-500.0,0.00014973,2]
[391262460,1760451032565,-416.93949315,0.00014999,2]
[391262461,1760451032575,-150.19376923,0.00014999,2]
[391262462,1760451032585,-150.0,0.00014999,2]
[391262463,1760451032594,-1195.50455797,0.00014999,5]
[391262464,1760451032604,-500.0,0.00014999,2]
[391262465,1760451032614,-500.0,0.00014999,2]
[391262466,1760451032624,-500.0,0.00014999,2]
[391262467,1760451032635,-500.0,0.00014999,2]
[391262468,1760451032645,-500.0,0.00014999,2]
[391262469,1760451032655,-500.0,0.00014999,2]
[391262470,1760451032665,-500.0,0.00014999,2]
[391262471,1760451032675,-500.0,0.00014999,2]
[391262472,1760451032685,-500.0,0.00014999,2]
[391262474,1760451032695,-3000.0,0.00014999,2]
[391262475,1760451032704,-500.0,0.00014999,2]
[391262477,1760451032714,-151.37581864,0.00014999,2]
[391262479,1760451032724,-500.0,0.00014999,2]
[391262481,1760451032733,-187.79101125,0.00014999,2]
[391262483,1760451032743,-500.0,0.00014999,2]
[391262485,1760451032753,-150.34772361,0.00014999,2]
[391262487,1760451032763,-150.17523028,0.00014999,2]
[391262489,1760451032773,-150.0,0.00014999,2]
[391262491,1760451032783,-262868.61584199,0.00015,2]
[391262494,1760451032803,-124197.20241627,0.00015,2]
[391262496,1760451032815,-4155.9276905,0.00015,2]
[391262498,1760451032827,-84949.71471122,0.00015,2]
[391262500,1760451032837,-153088.11304278,0.00015,2]
[391262502,1760451032848,-8093.91786612,0.00015,2]
[391262506,1760451032882,-1964.78140153,0.00015,2]
[391262509,1760451032898,-625656.46931359,0.00015,2]
[391262511,1760451032907,-1508.83459016,0.00015,2]
[391262513,1760451032917,-500.0,0.00015,2]
[391262515,1760451032926,-159.64980735,0.00015,2]
[391262517,1760451032936,-500.0,0.00015,2]
[391262519,1760451032946,-500.0,0.00015,2]
[391262521,1760451032955,-150.2588171,0.00015,2]
[391262523,1760451032965,-316083.0116672,0.00015,2]
[391262525,1760451032975,-23932.9339091,0.00015,2]
[391262527,1760451032985,-260.976183,0.00015,2]
[391262529,1760451032995,-151.0,0.00015,2]
[391262531,1760451033004,-151.0,0.00015,2]
[391262533,1760451033014,-151.0,0.00015,2]
[391262535,1760451033023,-151.0,0.00015,2]
[391262537,1760451033032,-151.0,0.00015,2]
[391262539,1760451033048,-158095.1527545,0.00015,2]
[391262541,1760451033059,-151.0,0.00015,2]
[391262543,1760451033074,-151.0,0.00015,2]
[391262545,1760451033084,-2038.6276917,0.00015,2]
[391262547,1760451033093,-500.0,0.00015,2]
[391262549,1760451033103,-151.0,0.00015,2]
[391262551,1760451033113,-151.0,0.00015,2]
[391262553,1760451033122,-151.0,0.00015,2]
[391262555,1760451033132,-236.854079,0.00015,2]
[391262557,1760451033142,-154.022605,0.00015,2]
[391262559,1760451033152,-151.0,0.00015,2]
[391262561,1760451033161,-151.0,0.00015,2]
[391262563,1760451033171,-202.106874,0.00015,2]
[391262566,1760451033181,-151.0,0.00015,2]
[391262568,1760451033191,-151.0,0.00015,2]
[391262570,1760451033201,-187.92168,0.00015,2]
[391262572,1760451033211,-151.542937,0.00015,2]
[391262574,1760451033221,-183.212233,0.00015,2]
[391262576,1760451033231,-210.427727,0.00015,2]
[391262577,1760451033240,-210.427727,0.00015,2]
[391262579,1760451033250,-151.0,0.00015,2]
[391262581,1760451033260,-210.427727,0.00015,2]
[391262583,1760451033269,-152.875818,0.00015,2]
[391262584,1760451033279,-210.427727,0.00015,2]
[391262585,1760451033292,-210.427727,0.00015,2]
[391262586,1760451033304,-210.427727,0.00015,2]
[391262587,1760451033313,-210.427727,0.00015,2]
[391262588,1760451033323,-210.427727,0.00015,2]
[391262589,1760451033332,-151.0,0.00015,2]
[391262590,1760451033343,-223.082902,0.00015,2]
[391262591,1760451033353,-151.0,0.00015,2]
[391262592,1760451033362,-151.0,0.00015,2]
[391262593,1760451033372,-151.0,0.00015,2]
[391262594,1760451033381,-151.0,0.00015,2]
[391262595,1760451033390,-151.0,0.00015,2]
[391262596,1760451033399,-151.0,0.00015,2]
[391262597,1760451033408,-151.0,0.00015,2]
[391262598,1760451033417,-151.0,0.00015,2]
[391262599,1760451033426,-151.0,0.00015,2]
[391262600,1760451033435,-151.0,0.00015,2]
[391262601,1760451033446,-151.0,0.00015,2]
[391262602,1760451033455,-172.1351983,0.00015,2]
[391262603,1760451033464,-152.568096,0.00015,2]
[391262604,1760451033474,-151.0,0.00015,2]
[391262605,1760451033483,-151.0,0.00015,2]
[391262606,1760451033493,-151.0,0.00015,2]
[391262607,1760451033502,-151.0,0.00015,2]
[391262608,1760451033511,-151.0,0.00015,2]
[391262609,1760451033520,-151.0,0.00015,2]
[391262610,1760451033530,-151.0,0.00015,2]
[391262611,1760451033543,-169.883485,0.00015,2]
[391262612,1760451033553,-151.0,0.00015,2]
[391262613,1760451033562,-151.0,0.00015,2]
[391262614,1760451033571,-151.0,0.00015,2]
[391262615,1760451033581,-151.0,0.00015,2]
[391262616,1760451033590,-151.0,0.00015,2]
[391262617,1760451033599,-151.0,0.00015,2]
[391262618,1760451033609,-151.0,0.00015,2]
[391262619,1760451033618,-151.0,0.00015,2]
[391262620,1760451033627,-263.6981324,0.00015,2]
[391262621,1760451033636,-151.0,0.00015,2]
[391262622,1760451033646,-151.0,0.00015,2]
[391262623,1760451033655,-151.0,0.00015,2]
[391262624,1760451033664,-151.0,0.00015,2]
[391262625,1760451033674,-151.0,0.00015,2]
[391262626,1760451033683,-301.159933,0.00015,2]
[391262627,1760451033692,-500.0,0.00015,2]
[391262628,1760451033702,-151.0,0.00015,2]
[391262629,1760451033712,-152.944161,0.00015,2]
[391262630,1760451033723,-151.356101,0.00015,2]
[391262631,1760451033732,-500.0,0.00015,2]
[391262632,1760451033741,-150.0,0.00015,2]
[391262633,1760451033751,-151.0,0.00015,2]
[391262634,1760451033761,-151.817445,0.00015,2]
[391262635,1760451033770,-1239.0,0.00015,2]
[391262636,1760451033780,-152.337691,0.00015,2]
[391262637,1760451033794,-150.0,0.00015,2]
[391262638,1760451033803,-151.0,0.00015,2]
[391262639,1760451033812,-151.0,0.00015,2]
[391262640,1760451033822,-151.0,0.00015,2]
[391262641,1760451033831,-151.0,0.00015,2]
[391262642,1760451033840,-151.0,0.00015,2]
[391262643,1760451033851,-151.0,0.00015,2]
[391262644,1760451033860,-151.0,0.00015,2]
[391262645,1760451033870,-151.0,0.00015,2]
[391262646,1760451033879,-151.0,0.00015,2]
[391262647,1760451033888,-151.0,0.00015,2]
[391262648,1760451033898,-160.546363,0.00015,2]
[391262649,1760451033908,-151.0,0.00015,2]
[391262650,1760451033917,-151.0,0.00015,2]
[391262651,1760451033927,-151.0,0.00015,2]
[391262652,1760451033937,-500.0,0.00015,2]
[391262653,1760451033946,-281.031085,0.00015,2]
[391262654,1760451033958,-151.0,0.00015,2]
[391262655,1760451033968,-151.0,0.00015,2]
[391262656,1760451033977,-151.0,0.00015,2]
[391262657,1760451033987,-151.0,0.00015,2]
[391262658,1760451033996,-230.27039574,0.00015,2]
[391262659,1760451034006,-151.0,0.00015,2]
[391262660,1760451034015,-151.0,0.00015,2]
[391262661,1760451034024,-500.0,0.00015,2]
[391262662,1760451034034,-151.0,0.00015,2]
[391262663,1760451034049,-151.0,0.00015,2]
[391262664,1760451034059,-212.369293,0.00015,2]
[391262665,1760451034071,-151.0,0.00015,2]
[391262666,1760451034080,-151.0,0.00015,2]
[391262667,1760451034090,-161.695635,0.00015,2]
[391262668,1760451034099,-151.0,0.00015,2]
[391262669,1760451034109,-151.0,0.00015,2]
[391262670,1760451034118,-151.0,0.00015,2]
[391262671,1760451034127,-150.0,0.00015,2]
[391262672,1760451034136,-151.0,0.00015,2]
[391262673,1760451034149,-150.0,0.00015,2]
[391262674,1760451034158,-151.0,0.00015,2]
[391262675,1760451034167,-151.0,0.00015,2]
[391262676,1760451034176,-150.0,0.00015,2]
[391262677,1760451034186,-150.0,0.00015,2]
[391262678,1760451034195,-151.0,0.00015,2]
[391262679,1760451034205,-151.0,0.00015,2]
[391262680,1760451034214,-151.0,0.00015,2]
[391262681,1760451034223,-151.0,0.00015,2]
[391262682,1760451034232,-151.0,0.00015,2]
[391262683,1760451034242,-197.87575,0.00015,2]
[391262684,1760451034251,-151.0,0.00015,2]
[391262685,1760451034260,-151.0,0.00015,2]
[391262686,1760451034269,-151.0,0.00015,2]
[391262687,1760451034279,-151.0,0.00015,2]
[391262688,1760451034291,-152.105331,0.00015,2]
[391262689,1760451034300,-1298.965135,0.00015,2]
[391262690,1760451034309,-1298.965135,0.00015,2]
[391262691,1760451034318,-170.36065,0.00015,2]
[391262692,1760451034328,-1298.965135,0.00015,2]
[391262693,1760451034337,-1298.965135,0.00015,2]
[391262694,1760451034346,-1298.965135,0.00015,2]
[391262695,1760451034355,-1298.965135,0.00015,2]
[391262696,1760451034364,-1298.965135,0.00015,2]
[391262697,1760451034373,-1298.965135,0.00015,2]
[391262698,1760451034383,-3859.822849,0.00015,2]
[391262699,1760451034392,-3859.822849,0.00015,2]
[391262700,1760451034401,-3859.822849,0.00015,2]
[391262701,1760451034410,-3859.822849,0.00015,2]
[391262702,1760451034419,-3859.822849,0.00015,2]
[391262703,1760451034428,-3859.822849,0.00015,2]
[391262704,1760451034437,-151.0,0.00015,2]
[391262705,1760451034447,-165.64458868,0.00015,2]
[391262706,1760451034456,-3859.822849,0.00015,2]
[391262707,1760451034465,-3859.822849,0.00015,2]